bitfinex-derivatives/quotes_ETHF0:USTF0_20230701
["timestamp","ask_amount","ask_price","bid_price","bid_amount"]
[1688187454887,5.01221,1916.2,1916.1,0.42135192]
[1688187455090,5.44703,1916.3,1916.1,0.42135192]
[1688187455284,5.44703,1916.3,1916.1,3.62915192]
[1688187456090,5.44703,1916.3,1916.1,0.42135192]
[1688187462196,0.78303,1916.3,1916.1,5.11135192]
[1688187462400,0.78303,1916.3,1916.1,5.52356677]
[1688187464401,0.78303,1916.3,1916.1,5.41547485]
[1688187476205,0.78303,1916.3,1916.1,8.62327485]
[1688187478320,6.32323047,1916.3,1916.1,0.72547485]
[1688187478515,0.104,1916.2,1916.1,0.41221485]
[1688187478709,8.28905,1916.2,1916.1,0.41221485]
[1688187478911,8.28905,1916.2,1916.0,0.0078282]
[1688187479110,11.03966047,1916.1,1916.0,0.0078282]
[1688187479315,11.14366047,1916.1,1916.0,0.0078282]
[1688187479515,15.50591496,1916.1,1916.0,0.0078282]
[1688187482328,15.50591496,1916.1,1915.7,4.67]
[1688187482329,15.50591496,1916.1,1915.7,0.31333]
[1688187482628,4.97731,1915.8,1915.7,0.31333]
[1688187483129,5.83151047,1915.8,1915.7,0.31333]
[1688187483425,4.97731,1915.8,1915.7,0.31333]
[1688187483834,5.26402635,1915.8,1915.7,0.31333]
[1688187484427,5.26402635,1915.8,1915.7,0.73550365]
[1688187484728,5.26402635,1915.8,1915.7,0.31333]
[1688187485324,0.00782982,1915.9,1915.7,4.98033]
[1688187485523,0.00782982,1915.9,1915.8,5.01231]
[1688187485828,0.00782982,1915.9,1915.8,8.22011]
[1688187486828,0.60783617,1915.9,1915.8,8.22011]
[1688187487128,0.29454617,1915.9,1915.8,8.22011]
[1688187487318,0.00782982,1915.9,1915.8,8.22011]
[1688187488728,0.00782982,1915.9,1915.8,8.46933043]
[1688187489030,0.32111982,1915.9,1915.8,8.46933043]
[1688187489826,0.00782982,1915.9,1915.8,8.46933043]
[1688187490031,5.11772982,1915.9,1915.8,8.46933043]
[1688187490429,5.43101982,1915.9,1915.8,8.46933043]
[1688187490631,5.71773617,1915.9,1915.8,5.26153043]
[1688187490933,13.72853617,1915.9,1915.8,0.24922043]
[1688187491127,18.09079066,1915.9,1915.8,0.24922043]
[1688187491333,18.09079066,1915.9,1915.6,0.41996697]
[1688187491334,0.56748412,1915.8,1915.6,0.41996697]
[1688187491527,8.61084635,1915.7,1915.6,0.41996697]
[1688187491827,8.61084635,1915.7,1915.6,0.00782982]
[1688187493234,8.61084635,1915.7,1915.6,0.32116982]
[1688187495235,8.61084635,1915.7,1915.6,0.00782982]
[1688187495535,4.699,1915.6,1915.2,0.7835]
[1688187495728,4.699,1915.3,1915.2,0.7835]
[1688187495928,5.29910635,1915.3,1915.2,0.7835]
[1688187496128,5.86659047,1915.3,1915.2,0.7835]
[1688187496324,5.86659047,1915.3,1915.2,1.20626893]
[1688187496531,5.86659047,1915.3,1915.2,0.73617893]
[1688187498936,10.67539047,1915.3,1915.2,1.14093125]
[1688187500737,10.67539047,1915.3,1915.2,0.82752125]
[1688187501040,10.67539047,1915.3,1915.1,0.00783187]
[1688187501041,10.77939047,1915.3,1915.1,0.00783187]
[1688187501236,7.8938,1915.2,1915.1,0.00783187]
[1688187501435,8.2072,1915.2,1915.1,0.00783187]
[1688187502241,8.3112,1915.2,1915.1,0.00783187]
[1688187502544,8.2072,1915.2,1915.1,0.32125187]
[1688187503539,8.2072,1915.2,1915.1,0.6292907]
[1688187503739,9.95456449,1915.3,1915.1,0.6292907]
[1688187504038,4.97739,1915.3,1915.1,0.6292907]
[1688187505750,5.14571449,1915.4,1915.2,4.67]
[1688187505751,4.36225449,1915.4,1915.2,4.67]
[1688187506057,4.14793,1915.6,1915.3,5.01238]
[1688187506058,0.94013,1915.6,1915.3,5.01238]
[1688187506251,4.699,1915.7,1915.3,5.01238]
[1688187506544,0.31332,1915.7,1915.6,5.01234]
[1688187506953,9.81737431,1915.9,1915.6,5.07848089]
[1688187507247,5.45511982,1915.9,1915.6,5.07848089]
[1688187507750,5.45511982,1915.9,1915.6,8.28628089]
[1688187509754,5.45511982,1915.9,1915.8,7.8748]
[1688187509755,0.00782982,1915.9,1915.8,7.8748]
[1688187509961,0.00782982,1915.9,1915.8,8.1881]
[1688187512563,0.32111982,1915.9,1915.8,4.9803]
[1688187514861,0.00782982,1915.9,1915.8,4.9803]
[1688187515360,0.00782982,1915.9,1915.8,8.1881]
[1688187517154,0.32111982,1915.9,1915.8,8.1881]
[1688187517353,0.00782982,1915.9,1915.8,8.1881]
[1688187520763,0.00782982,1915.9,1915.8,8.6120511]
[1688187521766,0.07995416,1915.9,1915.8,8.6120511]
[1688187523660,0.00782982,1915.9,1915.8,8.6120511]
[1688187524363,0.60783617,1915.9,1915.8,8.6120511]
[1688187525067,5.52383617,1915.9,1915.8,8.6120511]
[1688187527074,5.52383617,1915.9,1915.8,8.68359043]
[1688187528367,5.21054617,1915.9,1915.8,8.68359043]
[1688187529676,5.52383617,1915.9,1915.8,5.47579043]
[1688187530171,5.62783617,1915.9,1915.8,0.07153933]
[1688187530475,10.32683617,1915.9,1915.8,0.07153933]
[1688187531073,10.32683617,1915.9,1915.8,0.38483933]
[1688187531271,10.32683617,1915.9,1915.8,0.40786843]
[1688187531673,10.31383617,1915.9,1915.8,0.40786843]
[1688187534280,9.92311982,1915.9,1915.8,0.40786843]
[1688187534579,5.23711982,1915.9,1915.8,4.9833]
[1688187537575,5.52383617,1915.9,1915.8,4.9833]
[1688187539179,5.52383617,1915.9,1915.7,0.78328]
[1688187539180,10.29183617,1915.9,1915.7,0.78328]
[1688187539384,10.29183617,1915.9,1915.8,0.3133]
[1688187539773,10.29183617,1915.9,1915.8,0.40656835]
[1688187540077,10.85932029,1915.9,1915.8,0.40656835]
[1688187541384,5.34111982,1915.9,1915.8,0.40656835]
[1688187541984,5.23711982,1915.9,1915.8,0.40656835]
[1688187542785,5.23711982,1915.9,1915.8,3.61436835]
[1688187543282,5.23711982,1915.9,1915.8,0.40656835]
[1688187543488,5.23711982,1915.9,1915.8,3.61436835]
[1688187547187,5.23711982,1915.9,1915.8,0.40656835]
[1688187547582,5.52383617,1915.9,1915.8,0.40656835]
[1688187547785,5.23711982,1915.9,1915.8,3.61436835]
[1688187549488,5.23711982,1915.9,1915.8,4.02461237]
[1688187549789,5.52383617,1915.9,1915.8,4.02461237]
[1688187552389,5.52383617,1915.9,1915.8,0.81681237]
[1688187571296,5.23711982,1915.9,1915.8,0.81681237]
[1688187572089,5.23711982,1915.9,1915.8,5.51181237]
[1688187573097,4.92382982,1915.9,1915.8,5.51181237]
[1688187573501,4.92382982,1915.9,1915.8,5.41854402]
[1688187574301,0.00782982,1915.9,1915.8,8.62634402]
[1688187576301,0.32111982,1915.9,1915.8,8.62634402]
[1688187577400,0.32111982,1915.9,1915.8,5.41854402]
[1688187582500,0.32111982,1915.9,1915.8,8.62634402]
[1688187589612,0.32111982,1915.9,1915.8,8.63234402]
[1688187590498,0.00782982,1915.9,1915.8,8.63234402]
[1688187590906,0.32108982,1915.9,1915.8,8.63234402]
[1688187594906,0.00782982,1915.9,1915.8,8.63234402]
[1688187596010,0.00782982,1915.9,1915.8,13.32234402]
[1688187596208,0.16518426,1915.9,1915.8,13.32234402]
[1688187598005,4.8181,1916.2,1915.8,13.32234402]
[1688187598203,4.8181,1916.2,1916.1,7.9028]
[1688187598407,4.8181,1916.2,1916.1,8.21603]
[1688187601119,5.13132,1916.2,1916.1,8.21603]
[1688187601714,4.8181,1916.2,1916.1,8.21603]
[1688187602114,5.13132,1916.2,1916.1,8.21603]
[1688187602317,5.41803635,1916.2,1916.1,8.21603]
[1688187602611,5.13132,1916.2,1916.1,8.21603]
[1688187603010,5.41803635,1916.2,1916.1,8.21603]
[1688187603818,5.13132,1916.2,1916.1,8.21603]
[1688187604221,5.41803635,1916.2,1916.1,8.21603]
[1688187604624,5.13132,1916.2,1916.1,8.21603]
[1688187605523,4.8258282,1916.3,1916.1,8.21603]
[1688187605723,0.0078282,1916.3,1916.2,5.01422]
[1688187605918,0.3210282,1916.3,1916.2,5.01422]
[1688187606518,5.5535282,1916.3,1916.2,5.01422]
[1688187608825,5.84024455,1916.3,1916.2,5.01422]
[1688187609216,5.94424455,1916.3,1916.2,4.701]
[1688187609417,5.94424455,1916.3,1916.2,5.01422]
[1688187612131,5.84024455,1916.3,1916.2,5.01422]
[1688187615933,5.5535282,1916.3,1916.2,5.01422]
[1688187616732,5.84024455,1916.3,1916.2,5.01422]
[1688187626041,5.5535282,1916.3,1916.2,5.01422]
[1688187626541,5.84024455,1916.3,1916.2,5.01422]
[1688187626730,5.5535282,1916.3,1916.2,5.01422]
[1688187628032,5.84024455,1916.3,1916.2,5.01422]
[1688187628742,5.5535282,1916.3,1916.2,5.01422]
[1688187630147,5.84024455,1916.3,1916.2,5.01422]
[1688187631948,5.5535282,1916.3,1916.2,5.01422]
[1688187637959,5.94424455,1916.3,1916.1,5.43293196]
[1688187638251,5.94424455,1916.3,1916.2,0.31322]
[1688187638757,6.51172867,1916.3,1916.2,0.31322]
[1688187641369,6.58795908,1916.3,1916.2,0.31322]
[1688187642265,9.79575908,1916.3,1916.2,0.31322]
[1688187645371,9.69175908,1916.3,1916.2,0.31322]
[1688187649876,14.39175908,1916.3,1916.2,0.31322]
[1688187652075,9.69175908,1916.3,1916.2,0.31322]
[1688187653773,5.62975861,1916.3,1916.2,5.00822]
[1688187653971,5.5535282,1916.3,1916.2,5.00822]
[1688187654175,0.3210282,1916.3,1916.2,5.00822]
[1688187674898,0.0078282,1916.3,1916.2,5.00822]
[1688187689407,0.0078282,1916.3,1916.2,6.56792051]
[1688187690912,5.51578,1916.6,1916.2,6.56792051]
[1688187691105,10.40958,1916.6,1916.5,7.9028]
[1688187691311,10.40958,1916.6,1916.5,8.21597]
[1688187697118,10.52116717,1916.6,1916.5,8.21597]
[1688187703024,10.52116717,1916.6,1916.5,8.64347582]
[1688187711336,10.20798717,1916.6,1916.5,8.64347582]
[1688187711531,5.00538717,1916.6,1916.5,8.64347582]
[1688187714135,5.31854717,1916.6,1916.5,8.64347582]
[1688187715139,5.00538717,1916.6,1916.5,8.64347582]
[1688187717842,5.31854717,1916.6,1916.5,8.64347582]
[1688187719245,5.00538717,1916.6,1916.5,8.64347582]
[1688187720448,5.31854717,1916.6,1916.5,8.64347582]
[1688187721951,5.00538717,1916.6,1916.5,8.64347582]
[1688187724146,0.11158717,1916.6,1916.5,8.64347582]
[1688187724357,0.15050167,1916.6,1916.5,8.64347582]
[1688187724544,5.15754,1916.7,1916.5,8.64347582]
[1688187724745,5.15754,1916.7,1916.6,4.701]
[1688187725053,5.15754,1916.7,1916.6,5.01416]
[1688187727050,5.31030171,1916.7,1916.6,5.01416]
[1688187729556,0.15276171,1916.7,1916.6,5.01416]
[1688187729748,0.46590171,1916.7,1916.6,5.01416]
[1688187732357,0.15276171,1916.7,1916.6,5.01416]
[1688187734051,0.46590171,1916.7,1916.6,5.01416]
[1688187747563,0.75261806,1916.7,1916.6,5.01416]
[1688187748072,0.46590171,1916.7,1916.6,5.01416]
[1688187776104,0.75261806,1916.7,1916.6,5.01416]
[1688187776798,0.75261806,1916.7,1916.5,5.44167582]
[1688187776989,0.88064412,1916.6,1916.5,5.12850582]
[1688187777193,6.11954412,1916.6,1916.5,5.44167582]
[1688187777401,6.27364682,1916.6,1916.5,5.44167582]
[1688187779399,0.104,1916.3,1916.2,1.55970051]
[1688187779703,0.104,1916.3,1916.1,0.79090778]
[1688187779704,0.41722,1916.2,1916.1,0.79090778]
[1688187780099,0.70393635,1916.2,1916.1,0.79090778]
[1688187780495,0.70393635,1916.2,1916.1,0.42616332]
[1688187780694,0.70393635,1916.2,1916.1,0.73939332]
[1688187783898,0.70393635,1916.2,1916.1,0.73940332]
[1688187785501,3.91173635,1916.2,1916.0,0.78313]
[1688187785707,0.88073412,1916.1,1916.0,0.31326]
[1688187787008,0.31325,1916.1,1916.0,0.31326]
[1688187788511,0.31325,1916.1,1916.0,3.52106]
[1688187788814,0.104,1916.0,1915.9,0.42111044]
[1688187789014,3.62505,1916.0,1915.9,0.42111044]
[1688187789316,3.62505,1916.0,1915.9,0.09867795]
[1688187789317,4.47925047,1916.0,1915.9,0.09867795]
[1688187792319,4.47925047,1916.0,1915.9,0.00782861]
[1688187793114,4.47925047,1916.0,1915.9,0.10761439]
[1688187794617,4.47925047,1916.0,1915.9,0.00782861]
[1688187797119,4.47925047,1916.0,1915.9,0.10759193]
[1688187797431,4.37525047,1916.0,1915.9,0.42086193]
[1688187797719,1.16745047,1916.0,1915.9,0.42086193]
[1688187801722,1.16745047,1916.0,1915.9,0.10759193]
[1688187801926,1.16745047,1916.0,1915.9,0.42084193]
[1688187806637,4.36225449,1916.1,1915.9,5.07584193]
[1688187806933,0.31323,1916.1,1916.0,5.01422]
[1688187807236,0.31323,1916.1,1916.0,5.11392737]
[1688187814439,0.31323,1916.1,1916.0,10.37772737]
[1688187822246,0.31323,1916.1,1916.0,10.78688414]
[1688187822547,0.59994635,1916.1,1916.0,10.78688414]
[1688187824148,0.31323,1916.1,1916.0,10.78688414]
[1688187828043,0.32105861,1916.2,1916.0,10.78688414]
[1688187828241,0.32105861,1916.2,1916.1,7.8628]
[1688187828446,0.32105861,1916.2,1916.1,8.17603]
[1688187836062,0.60777496,1916.2,1916.1,8.17603]
[1688187836260,0.32105861,1916.2,1916.1,8.17603]
[1688187847258,0.60777496,1916.2,1916.1,8.17603]
[1688187848062,0.32105861,1916.2,1916.1,8.17603]
[1688187853959,0.00782861,1916.2,1916.1,8.17603]
[1688187854163,4.9458,1916.6,1916.1,8.17603]
[1688187854361,4.80154997,1916.6,1916.5,4.695]
[1688187854562,4.80154997,1916.6,1916.5,5.00817]
[1688187855061,4.80154997,1916.6,1916.5,10.17467]
[1688187855461,5.21264,1916.8,1916.5,10.17467]
[1688187855661,0.41714,1916.8,1916.6,4.701]
[1688187855862,0.93935,1917.1,1916.7,4.96815]
[1688187856065,0.93935,1917.1,1917.0,4.701]
[1688187856367,0.93935,1917.1,1917.0,5.01411]
[1688187861865,1.22930944,1917.1,1917.0,5.01411]
[1688187868969,1.51602579,1917.1,1917.0,5.43891219]
[1688187869169,1.22930944,1917.1,1917.0,5.43891219]
[1688187870775,0.28995944,1917.1,1917.0,5.43891219]
[1688187871079,0.29003794,1917.1,1917.0,5.43891219]
[1688187871275,0.29003794,1917.1,1917.0,8.64671219]
[1688187871476,10.03779,1917.2,1917.0,8.64671219]
[1688187871776,10.03779,1917.2,1917.1,5.01409]
[1688187872678,5.27059,1917.2,1917.1,5.01409]
[1688187873578,5.55730635,1917.2,1917.1,5.01409]
[1688187873980,5.27059,1917.2,1917.1,5.01409]
[1688187876676,0.31308,1917.3,1917.1,5.01409]
[1688187876876,0.31308,1917.3,1917.2,4.695]
[1688187877175,0.31308,1917.3,1917.2,9.83087]
[1688187878878,0.31308,1917.3,1917.2,5.00807]
[1688187883990,0.59979635,1917.3,1917.2,5.00807]
[1688187884178,0.59979635,1917.3,1917.2,0.31307]
[1688187888190,0.59979635,1917.3,1917.2,0.73828932]
[1688187888381,0.59979635,1917.3,1917.2,0.31307]
[1688187891990,0.8331954,1917.3,1917.2,0.31307]
[1688187892286,0.8331954,1917.3,1917.2,5.00807]
[1688187900283,0.54647905,1917.3,1917.2,5.00807]
[1688187900996,0.8331954,1917.3,1917.2,5.00807]
[1688187901695,0.9093138,1917.3,1917.2,5.00807]
[1688187902493,0.62259745,1917.3,1917.2,5.00807]
[1688187903396,0.9093138,1917.3,1917.2,5.00807]
[1688187903903,0.62259745,1917.3,1917.2,5.00807]
[1688187904698,0.62259745,1917.3,1917.2,10.28847]
[1688187905601,0.9093138,1917.3,1917.2,10.28847]
[1688187906697,0.9093138,1917.3,1917.1,5.10994893]
[1688187907002,0.9093138,1917.3,1917.1,5.42302893]
[1688187907003,4.08835412,1917.2,1917.1,5.42302893]
[1688187907208,4.39885223,1917.2,1917.1,5.42302893]
[1688187908303,9.09885223,1917.2,1917.0,4.9681]
[1688187908507,13.46110672,1917.2,1917.0,4.655]
[1688187908801,13.46110672,1917.2,1917.0,5.07018759]
[1688187908802,0.28671635,1917.1,1917.0,5.07018759]
[1688187909002,0.59979635,1917.1,1917.0,5.07018759]
[1688187909198,0.9103015,1917.1,1917.0,5.07018759]
[1688187913703,5.6113015,1917.1,1916.9,0.00782431]
[1688187913905,3.77528412,1917.0,1916.9,0.00782431]
[1688187914202,4.39890672,1917.0,1916.9,0.00782431]
[1688187915098,8.76116121,1917.0,1916.9,0.00782431]
[1688187916097,8.76116121,1917.0,1916.9,0.43326211]
[1688187916297,8.76116121,1917.0,1916.9,0.00782431]
[1688187920312,8.19367709,1917.0,1916.9,5.01593431]
[1688187920516,0.6236226,1917.0,1916.9,5.01593431]
[1688187922219,0.3105226,1917.0,1916.9,5.01593431]
[1688187922422,0.6236126,1917.0,1916.9,5.01593431]
[1688187926525,0.6236026,1917.0,1916.9,5.01593431]
[1688187926728,0.91031895,1917.0,1916.9,5.01593431]
[1688187927526,0.6236026,1917.0,1916.9,5.01593431]
[1688187928430,0.91031895,1917.0,1916.9,5.01593431]
[1688187929733,0.6236026,1917.0,1916.9,5.01593431]
[1688187932029,0.3105226,1917.0,1916.9,5.01593431]
[1688187932329,0.6236026,1917.0,1916.9,5.01593431]
[1688187941740,0.6236026,1917.0,1916.9,8.22373431]
[1688187945049,0.91031895,1917.0,1916.9,8.22373431]
[1688187950048,0.6236026,1917.0,1916.9,8.22373431]
[1688187950641,0.91031895,1917.0,1916.9,8.22373431]
[1688187956152,0.91031895,1917.0,1916.9,5.01593431]
[1688187959560,0.3105226,1917.0,1916.9,5.01593431]
[1688187972464,0.00019943,1917.0,1916.9,12.92473431]
[1688187972777,0.1554112,1917.0,1916.9,12.92473431]
[1688187972958,5.59983,1917.4,1916.9,12.92473431]
[1688187973156,5.59983,1917.4,1917.3,4.96803]
[1688187973360,5.88654635,1917.4,1917.3,4.96803]
[1688187974167,5.59983,1917.4,1917.3,4.96803]
[1688187974469,8.50909449,1917.5,1917.3,4.96803]
[1688187974668,4.14684,1917.5,1917.4,4.701]
[1688187974968,0.93904,1917.5,1917.4,5.01401]
[1688187975473,0.93904,1917.5,1917.4,9.78641]
[1688187978470,0.93904,1917.5,1917.4,5.01401]
[1688187979967,1.09735896,1917.5,1917.4,5.01401]
[1688187986182,1.09735896,1917.5,1917.4,5.42693987]
[1688187991280,1.38407531,1917.5,1917.4,5.42693987]
[1688187991487,1.38407531,1917.5,1917.4,5.11392987]
[1688187993496,1.38407531,1917.5,1917.4,5.42693987]
[1688187994488,4.59187531,1917.5,1917.4,5.42693987]
[1688187994687,4.59187531,1917.5,1917.4,0.41292987]
[1688187995092,4.59187531,1917.5,1917.3,5.01402]
[1688187995289,0.56748412,1917.4,1917.3,5.01402]
[1688187995488,1.03678163,1917.4,1917.3,5.01402]
[1688187998398,1.03678163,1917.4,1917.3,4.701]
[1688187999802,1.03678163,1917.4,1917.3,5.01403]
[1688188006214,0.46929751,1917.4,1917.3,5.01403]
[1688188007506,0.75601386,1917.4,1917.2,6.25187733]
[1688188007704,0.75601386,1917.4,1917.3,4.695]
[1688188007905,0.75601386,1917.4,1917.3,5.00803]
[1688188008106,0.46929751,1917.4,1917.3,5.00803]
[1688188010209,0.46929751,1917.4,1917.3,4.96803]
[1688188010413,0.15628751,1917.4,1917.3,4.96803]
[1688188010610,0.75601386,1917.4,1917.3,4.96803]
[1688188014312,3.96381386,1917.4,1917.3,4.96803]
[1688188019116,8.66481386,1917.4,1917.0,4.695]
[1688188019414,3.52087,1917.1,1917.0,4.695]
[1688188019615,3.80758635,1917.1,1917.0,4.695]
[1688188019812,3.9637927,1917.1,1917.0,4.695]
[1688188020009,4.53127682,1917.1,1917.0,4.695]
[1688188022121,4.53127682,1917.1,1916.9,5.02191431]
[1688188023011,4.53127682,1917.1,1916.9,5.4418368]
[1688188023210,4.53127682,1917.1,1916.9,5.1287468]
[1688188024719,4.53127682,1917.1,1916.9,5.4418468]
[1688188025319,9.23227682,1917.1,1916.9,0.7408468]
[1688188031925,9.65264098,1917.1,1916.9,0.7408468]
[1688188037926,0.46927635,1917.1,1917.0,4.695]
[1688188038225,0.46927635,1917.1,1917.0,5.00809]
[1688188044735,0.46927635,1917.1,1917.0,9.94159]
[1688188048046,0.7559927,1917.1,1917.0,9.94159]
[1688188048345,0.46927635,1917.1,1917.0,9.94159]
[1688188065864,0.7559927,1917.1,1917.0,9.94159]
[1688188067666,0.46927635,1917.1,1917.0,9.94159]
[1688188067961,0.46927635,1917.1,1917.0,9.6285]
[1688188068260,0.46927635,1917.1,1917.0,9.94158]
[1688188068465,8.7687927,1917.1,1916.9,0.4277468]
[1688188068663,8.6647927,1917.1,1916.9,0.4277468]
[1688188069062,0.56748412,1917.0,1916.9,0.4277468]
[1688188069265,1.03693541,1917.0,1916.9,0.4277468]
[1688188069777,5.84093541,1917.0,1916.9,0.11722422]
[1688188069972,5.84093541,1917.0,1916.6,4.695]
[1688188069973,5.68457412,1917.0,1916.6,5.00815]
[1688188070275,0.31314,1916.7,1916.6,5.00815]
[1688188070567,0.59985635,1916.7,1916.6,5.00815]
[1688188071162,0.59985635,1916.7,1916.6,0.31315]
[1688188071669,4.96211084,1916.7,1916.6,0.31315]
[1688188071867,4.96211084,1916.7,1916.6,0.7224602]
[1688188072067,4.96211084,1916.7,1916.6,0.38213035]
[1688188081284,4.96211084,1916.7,1916.6,0.06898035]
[1688188082770,4.96211084,1916.7,1916.6,0.38213035]
[1688188082968,4.96211084,1916.7,1916.6,0.06898035]
[1688188086484,4.96211084,1916.7,1916.6,0.38213035]
[1688188087684,4.96211084,1916.7,1916.6,0.06898035]
[1688188089088,4.96211084,1916.7,1916.6,0.38213035]
[1688188098385,4.96211084,1916.7,1916.6,5.58913035]
[1688188098888,4.96211084,1916.7,1916.6,5.27598035]
[1688188099084,4.96211084,1916.7,1916.6,5.58912035]
[1688188099591,4.96211084,1916.7,1916.6,5.58910035]
[1688188099796,4.96211084,1916.7,1916.6,0.06898035]
[1688188101489,4.96211084,1916.7,1916.6,0.38210035]
[1688188103596,4.96211084,1916.7,1916.6,5.56270035]
[1688188104208,4.67539449,1916.7,1916.6,5.56270035]
[1688188104891,0.31314,1916.7,1916.6,5.56270035]
[1688188106396,0.59985635,1916.7,1916.6,5.56270035]
[1688188114003,0.59985635,1916.7,1916.6,5.56269035]
[1688188114198,0.59985635,1916.7,1916.6,5.56271035]
[1688188114593,4.37007347,1916.8,1916.6,10.21771035]
[1688188114792,0.00781898,1916.8,1916.6,10.14873]
[1688188114998,0.32092898,1916.8,1916.6,15.33843]
[1688188129704,0.00781898,1916.8,1916.6,15.33843]
[1688188130409,0.32094898,1916.8,1916.6,15.33843]
[1688188132217,0.32094898,1916.8,1916.7,5.01414]
[1688188133619,0.60766533,1916.8,1916.7,5.01414]
[1688188134818,0.32094898,1916.8,1916.7,5.01414]
[1688188139027,0.60766533,1916.8,1916.7,5.01414]
[1688188143427,0.32094898,1916.8,1916.7,5.01414]
[1688188144325,0.32094898,1916.8,1916.7,8.22194]
[1688188144724,0.00781898,1916.8,1916.7,8.22194]
[1688188145130,0.32094898,1916.8,1916.7,8.22194]
[1688188145633,0.32093898,1916.8,1916.7,7.53378866]
[1688188145835,0.32093898,1916.8,1916.7,7.94249935]
[1688188157041,0.42493898,1916.8,1916.7,7.62935935]
[1688188157243,0.71165533,1916.8,1916.7,0.72183069]
[1688188157847,3.91945533,1916.8,1916.7,0.72183069]
[1688188158845,3.81545533,1916.8,1916.7,0.72183069]
[1688188162051,8.51645533,1916.8,1916.7,0.72183069]
[1688188168356,5.30865533,1916.8,1916.7,0.72183069]
[1688188168859,8.51645533,1916.8,1916.7,0.72183069]
[1688188170363,5.30865533,1916.8,1916.7,0.72183069]
[1688188170567,8.51645533,1916.8,1916.5,0.00782616]
[1688188170856,7.9088,1916.6,1916.5,0.00782616]
[1688188171054,8.50865635,1916.6,1916.5,0.00782616]
[1688188171855,8.61265635,1916.6,1916.5,0.00782616]
[1688188176662,8.50865635,1916.6,1916.5,0.32098616]
[1688188176868,3.52094,1916.6,1916.5,0.46213437]
[1688188177164,0.31314,1916.6,1916.5,0.32098616]
[1688188178466,0.31314,1916.6,1916.5,5.09888616]
[1688188182366,0.31314,1916.6,1916.5,5.09887616]
[1688188182763,0.59985635,1916.6,1916.5,5.09887616]
[1688188183573,0.59985635,1916.6,1916.5,5.09886616]
[1688188184667,5.29985635,1916.6,1916.5,5.09886616]
[1688188186378,5.29985635,1916.6,1916.5,5.52365429]
[1688188193185,5.29985635,1916.6,1916.5,5.21051429]
[1688188194975,5.29985635,1916.6,1916.5,0.43261429]
[1688188196887,5.29985635,1916.6,1916.5,0.74574429]
[1688188197188,5.29985635,1916.6,1916.5,0.43261429]
[1688188198488,5.29985635,1916.6,1916.5,0.00782616]
[1688188199983,8.61165635,1916.6,1916.5,0.00782616]
[1688188205997,8.61165635,1916.6,1916.5,0.1405368]
[1688188206898,8.61165635,1916.6,1915.9,5.81552058]
[1688188207097,4.7,1916.1,1916.0,5.0839]
[1688188207305,5.86740047,1916.1,1916.0,5.39711]
[1688188208205,5.86740047,1916.1,1916.0,5.66716177]
[1688188208404,10.22965496,1916.1,1916.0,5.66716177]
[1688188209598,5.86740047,1916.1,1916.0,5.66716177]
[1688188210102,9.07520047,1916.1,1916.0,0.27005177]
[1688188210306,13.43745496,1916.1,1916.0,0.27005177]
[1688188212599,13.54145496,1916.1,1916.0,0.27005177]
[1688188213196,13.43745496,1916.1,1916.0,0.58326177]
[1688188214302,9.66217084,1916.1,1916.0,0.58326177]
[1688188214501,5.0142,1916.1,1916.0,0.58326177]
[1688188217213,5.30091635,1916.1,1916.0,0.58326177]
[1688188219913,5.0142,1916.1,1916.0,0.58326177]
[1688188220515,5.30091635,1916.1,1916.0,0.58326177]
[1688188221808,5.30091635,1916.1,1916.0,0.31321]
[1688188222509,5.30091635,1916.1,1915.9,10.39524377]
[1688188222510,8.50871635,1916.1,1915.9,10.39524377]
[1688188222717,0.88071412,1916.0,1915.9,10.70848377]
[1688188226219,5.58171412,1916.0,1915.9,10.70848377]
[1688188230015,5.58171412,1916.0,1915.9,5.62858377]
[1688188230819,5.01423,1916.0,1915.9,5.62858377]
[1688188237121,5.01423,1916.0,1915.9,0.73098377]
[1688188241823,5.01423,1916.0,1915.9,0.41774377]
[1688188246826,5.01423,1916.0,1915.9,5.99259377]
[1688188253329,5.01423,1916.0,1915.9,0.41774377]
[1688188253829,5.01423,1916.0,1915.9,0.00782861]
[1688188256428,5.01423,1916.0,1915.9,0.32107861]
[1688188257925,5.01423,1916.0,1915.9,0.00782861]
[1688188265030,5.43304233,1916.0,1915.9,0.00782861]
[1688188265439,5.4002117,1916.0,1915.9,0.32107861]
[1688188265743,5.4002117,1916.0,1915.9,0.00782861]
[1688188268345,5.4002117,1916.0,1915.9,0.32107861]
[1688188268845,5.4002117,1916.0,1915.9,0.32106861]
[1688188269746,5.4002117,1916.0,1915.9,0.00782861]
[1688188270939,5.4002117,1916.0,1915.9,0.32107861]
[1688188271751,5.4002117,1916.0,1915.9,0.00782861]
[1688188271948,5.4002117,1916.0,1915.9,0.32107861]
[1688188272844,5.4002117,1916.0,1915.9,0.00782861]
[1688188273548,5.4002117,1916.0,1915.9,0.32107861]
[1688188273746,5.4002117,1916.0,1915.9,0.00782861]
[1688188273949,5.4002117,1916.0,1915.9,0.32107861]
[1688188274950,5.4002117,1916.0,1915.9,0.00782861]
[1688188275150,5.4002117,1916.0,1915.9,0.32107861]
[1688188277647,5.4002117,1916.0,1915.9,0.00782861]
[1688188278151,4.98139937,1916.0,1915.9,0.32107861]
[1688188278341,4.701,1916.0,1915.9,0.32107861]
[1688188278547,0.06786804,1916.0,1915.9,3.52887861]
[1688188278852,0.17089755,1916.0,1915.9,13.33057861]
[1688188279150,4.7,1916.3,1915.9,13.33057861]
[1688188279151,5.01321,1916.3,1915.9,13.33057861]
[1688188279353,5.01321,1916.3,1916.2,0.31322]
[1688188280151,5.01321,1916.3,1916.2,5.26712]
[1688188283256,5.18410641,1916.3,1916.2,5.26712]
[1688188286762,5.47082276,1916.3,1916.2,4.9539]
[1688188286961,5.47082276,1916.3,1916.2,5.26708]
[1688188287462,5.18410641,1916.3,1916.2,5.26708]
[1688188290469,5.47082276,1916.3,1916.2,5.67761965]
[1688188292163,5.47182276,1916.3,1916.2,5.67761965]
[1688188292362,5.47182276,1916.3,1915.9,1.05203861]
[1688188292656,5.0142,1916.1,1916.0,4.9493]
[1688188292864,5.30091635,1916.1,1915.9,0.00782861]
[1688188293063,5.01422,1916.0,1915.9,0.00782861]
[1688188293264,5.58170412,1916.0,1915.9,0.32105861]
[1688188293465,5.75259788,1916.0,1915.9,0.74039219]
[1688188293669,5.75259788,1916.0,1915.9,0.32105861]
[1688188297671,5.58170412,1916.0,1915.9,0.32105861]
[1688188297869,9.94395861,1916.0,1915.9,0.00782861]
[1688188298370,5.58170412,1916.0,1915.9,0.32107861]
[1688188299964,5.01422,1916.0,1915.9,0.32107861]